[Event "*** Titled Tuesday Blitz"]
[Site "Chess.com"]
[Date "2020.03.03"]
[Round "4"]
[White "AntonSmirnov"]
[Black "Man-Chuk"]
[Result "1-0"]
[WhiteElo "2935"]
[BlackElo "2789"]
[TimeControl "180+1"]
[EndTime "13:43:51 PST"]
[Termination "AntonSmirnov won by checkmate"]

1. e4 {[%clk 0:03:00.9]} 1... e5 {[%clk 0:02:22.7]} 2. Nf3 {[%clk 0:02:59.2]}
2... Nc6 {[%clk 0:02:22.6]} 3. Bb5 {[%clk 0:02:59.4]} 3... Nf6 {[%clk
0:02:22.7]} 4. O-O {[%clk 0:02:58.9]} 4... Nxe4 {[%clk 0:02:23.2]} 5. d4 {[%clk
0:02:59.5]} 5... Nd6 {[%clk 0:02:23.8]} 6. Bxc6 {[%clk 0:03:00.2]} 6... dxc6
{[%clk 0:02:24.5]} 7. dxe5 {[%clk 0:03:01.1]} 7... Nf5 {[%clk 0:02:25]} 8. Qxd8+
{[%clk 0:03:02]} 8... Kxd8 {[%clk 0:02:25.9]} 9. Rd1+ {[%clk 0:03:02.6]} 9...
Ke8 {[%clk 0:02:26.3]} 10. h3 {[%clk 0:03:03.1]} 10... h5 {[%clk 0:02:26.9]} 11.
Nc3 {[%clk 0:03:02.9]} 11... Be6 {[%clk 0:02:22.9]} 12. Ne2 {[%clk 0:03:02.4]}
12... Bd5 {[%clk 0:02:12.2]} 13. Nfd4 {[%clk 0:03:01.3]} 13... Nxd4 {[%clk
0:02:07.7]} 14. Nxd4 {[%clk 0:03:02.2]} 14... Bc5 {[%clk 0:02:03.7]} 15. Bg5
{[%clk 0:02:50.5]} 15... Bxd4 {[%clk 0:01:38.8]} 16. Rxd4 {[%clk 0:02:51.4]}
16... b5 {[%clk 0:01:39.3]} 17. b3 {[%clk 0:02:49.5]} 17... Rf8 {[%clk
0:00:55.6]} 18. Re1 {[%clk 0:02:25.9]} 18... Be6 {[%clk 0:00:44.7]} 19. Rh4
{[%clk 0:02:20.3]} 19... c5 {[%clk 0:00:37.9]} 20. Rxh5 {[%clk 0:02:17.6]} 20...
Kd7 {[%clk 0:00:38.2]} 21. Rh7 {[%clk 0:02:10.4]} 21... Rg8 {[%clk 0:00:38.6]}
22. g4 {[%clk 0:02:09.5]} 22... Kc6 {[%clk 0:00:34.6]} 23. f4 {[%clk 0:02:06.7]}
23... g6 {[%clk 0:00:34.7]} 24. Kf2 {[%clk 0:02:03.4]} 24... a5 {[%clk
0:00:35.1]} 25. h4 {[%clk 0:01:55.3]} 25... a4 {[%clk 0:00:34.6]} 26. h5 {[%clk
0:01:25.6]} 26... axb3 {[%clk 0:00:34.7]} 27. axb3 {[%clk 0:01:25.2]} 27... Ra2
{[%clk 0:00:35]} 28. h6 {[%clk 0:01:20.6]} 28... Rxc2+ {[%clk 0:00:35]} 29. Re2
{[%clk 0:01:15.5]} 29... Rc1 {[%clk 0:00:28.2]} 30. Bf6 {[%clk 0:01:05.1]} 30...
Bxg4 {[%clk 0:00:26.8]} 31. Rd2 {[%clk 0:01:03]} 31... Rh1 {[%clk 0:00:25.3]}
32. Kg2 {[%clk 0:01:02.5]} 32... Rh3 {[%clk 0:00:21]} 33. Rg7 {[%clk 0:00:55.6]}
33... Rh8 {[%clk 0:00:19.8]} 34. Bg5 {[%clk 0:00:52.2]} 34... Be6 {[%clk
0:00:17.3]} 35. f5 {[%clk 0:00:22.2]} 35... Rh5 {[%clk 0:00:17.6]} 36. fxe6
{[%clk 0:00:19.8]} 36... Rxg5+ {[%clk 0:00:18.1]} 37. Kf3 {[%clk 0:00:19.6]}
37... fxe6 {[%clk 0:00:18.5]} 38. h7 {[%clk 0:00:19.6]} 38... Rxe5 {[%clk
0:00:16.7]} 39. Rdd7 {[%clk 0:00:19.4]} 39... Rh5 {[%clk 0:00:14.6]} 40. Ke4
{[%clk 0:00:19.1]} 40... Kb6 {[%clk 0:00:12.5]} 41. Rxc7 {[%clk 0:00:18.9]}
41... Ka5 {[%clk 0:00:12.9]} 42. Rb7 {[%clk 0:00:19]} 42... Kb4 {[%clk
0:00:13.3]} 43. Kd3 {[%clk 0:00:19.3]} 43... Rh2 {[%clk 0:00:13]} 44. Ke4 {[%clk
0:00:16]} 44... Rh3 {[%clk 0:00:12.6]} 45. Ke5 {[%clk 0:00:15.5]} 45... g5
{[%clk 0:00:11.1]} 46. Ke4 {[%clk 0:00:13.4]} 46... g4 {[%clk 0:00:11.3]} 47.
Kf4 {[%clk 0:00:13.7]} 47... g3 {[%clk 0:00:10.4]} 48. Kf3 {[%clk 0:00:14.1]}
48... Rh1 {[%clk 0:00:07.1]} 49. Kg2 {[%clk 0:00:12.4]} 49... Rh6 {[%clk
0:00:07.2]} 50. Kxg3 {[%clk 0:00:12.2]} 50... Kxb3 {[%clk 0:00:06.5]} 51. Rxb5+
{[%clk 0:00:12]} 51... Kc4 {[%clk 0:00:07.1]} 52. Rbb7 {[%clk 0:00:12.5]} 52...
Kc3 {[%clk 0:00:07.5]} 53. Kf4 {[%clk 0:00:11.9]} 53... Rh1 {[%clk 0:00:05.9]}
54. Ke5 {[%clk 0:00:11.6]} 54... c4 {[%clk 0:00:06.1]} 55. Kxe6 {[%clk 0:00:11]}
55... Kc2 {[%clk 0:00:06.5]} 56. Kd5 {[%clk 0:00:10.9]} 56... c3 {[%clk
0:00:06.1]} 57. Kd4 {[%clk 0:00:11]} 57... Rh4+ {[%clk 0:00:05.6]} 58. Ke3
{[%clk 0:00:11.3]} 58... Rh3+ {[%clk 0:00:05.5]} 59. Kf2 {[%clk 0:00:11.6]}
59... Rh2+ {[%clk 0:00:06.4]} 60. Kg3 {[%clk 0:00:12]} 60... Rh1 {[%clk
0:00:05.9]} 61. Kg2 {[%clk 0:00:12.3]} 61... Rh6 {[%clk 0:00:06]} 62. Kf2 {[%clk
0:00:11.8]} 62... Kc1 {[%clk 0:00:05.7]} 63. Rg1+ {[%clk 0:00:11.6]} 63... Kd2
{[%clk 0:00:06.3]} 64. Rd7+ {[%clk 0:00:12]} 64... Kc2 {[%clk 0:00:06.6]} 65.
Rgg7 {[%clk 0:00:12.7]} 65... Kc1 {[%clk 0:00:07.1]} 66. Ke2 {[%clk 0:00:11.5]}
66... c2 {[%clk 0:00:06.5]} 67. Rg1+ {[%clk 0:00:11.4]} 67... Kb2 {[%clk
0:00:05.9]} 68. Rb7+ {[%clk 0:00:11.9]} 68... Ka2 {[%clk 0:00:05.8]} 69. Ra7+
{[%clk 0:00:09.1]} 69... Kb3 {[%clk 0:00:06.2]} 70. Rb7+ {[%clk 0:00:09.6]}
70... Kc3 {[%clk 0:00:05.1]} 71. Rc7+ {[%clk 0:00:09.4]} 71... Kb3 {[%clk
0:00:05.6]} 72. Rg3+ {[%clk 0:00:06.9]} 72... Kb2 {[%clk 0:00:04.1]} 73. Rb7+
{[%clk 0:00:07.2]} 73... Ka2 {[%clk 0:00:04.1]} 74. Ra7+ {[%clk 0:00:07.6]}
74... Kb2 {[%clk 0:00:04.5]} 75. Rb7+ {[%clk 0:00:08.1]} 75... Ka2 {[%clk
0:00:04.5]} 76. Rc3 {[%clk 0:00:08]} 76... Rh2+ {[%clk 0:00:03.5]} 77. Kd3
{[%clk 0:00:08.1]} 77... Rd8+ {[%clk 0:00:03.9]} 78. Ke4 {[%clk 0:00:06.5]}
78... Rh4+ {[%clk 0:00:04.3]} 79. Kf5 {[%clk 0:00:06.4]} 79... Rh5+ {[%clk
0:00:03.3]} 80. Kg6 {[%clk 0:00:06.5]} 80... Rh2 {[%clk 0:00:04.2]} 81. Rc5
{[%clk 0:00:05.8]} 81... Rd3 {[%clk 0:00:03.3]} 82. Rxc2+ {[%clk 0:00:04.2]}
82... Rxc2 {[%clk 0:00:02.6]} 83. h8=Q {[%clk 0:00:04.8]} 83... Rg2+ {[%clk
0:00:03.1]} 84. Kf5 {[%clk 0:00:05]} 84... Rf2+ {[%clk 0:00:02.9]} 85. Ke4
{[%clk 0:00:05.4]} 85... Rdd2 {[%clk 0:00:02.9]} 86. Qa8# {[%clk 0:00:05.1]} 1-0

[Event "*** Titled Tuesday Blitz"]
[Site "Chess.com"]
[Date "2020.03.03"]
[Round "5"]
[White "MartinCerveny"]
[Black "Vaathi_Coming"]
[Result "0-1"]
[WhiteElo "2622"]
[BlackElo "2824"]
[TimeControl "180+1"]
[EndTime "13:48:01 PST"]
[Termination "Vaathi_Coming won by resignation"]

1. d4 {[%clk 0:03:00.9]} 1... Nf6 {[%clk 0:02:58.9]} 2. c4 {[%clk 0:03:00.9]}
2... e6 {[%clk 0:02:58.4]} 3. Nf3 {[%clk 0:03:00.4]} 3... d5 {[%clk 0:02:59.3]}
4. g3 {[%clk 0:02:59.1]} 4... dxc4 {[%clk 0:02:58.5]} 5. Bg2 {[%clk 0:02:59.4]}
5... c5 {[%clk 0:02:58.3]} 6. O-O {[%clk 0:02:56.8]} 6... Nc6 {[%clk 0:02:57.7]}
7. e3 {[%clk 0:02:38.9]} 7... cxd4 {[%clk 0:02:54.7]} 8. exd4 {[%clk 0:02:38.4]}
8... Be7 {[%clk 0:02:53.8]} 9. Nbd2 {[%clk 0:02:33.9]} 9... Nxd4 {[%clk
0:02:48.3]} 10. Nxc4 {[%clk 0:02:33.8]} 10... Nxf3+ {[%clk 0:02:48.2]} 11. Qxf3
{[%clk 0:02:33.9]} 11... O-O {[%clk 0:02:48.3]} 12. Rd1 {[%clk 0:02:22.8]} 12...
Qc7 {[%clk 0:02:48.3]} 13. b3 {[%clk 0:02:21.9]} 13... Nd5 {[%clk 0:02:45.7]}
14. Bb2 {[%clk 0:02:18.3]} 14... b5 {[%clk 0:02:43.3]} 15. Ne3 {[%clk
0:02:06.8]} 15... Bb7 {[%clk 0:02:41.9]} 16. Rac1 {[%clk 0:02:02.4]} 16... Qb6
{[%clk 0:02:39.5]} 17. Qg4 {[%clk 0:02:00.8]} 17... Nf6 {[%clk 0:02:35.9]} 18.
Qf4 {[%clk 0:01:49.1]} 18... Bxg2 {[%clk 0:02:34.5]} 19. Kxg2 {[%clk 0:01:50]}
19... Rac8 {[%clk 0:02:32.6]} 20. Ng4 {[%clk 0:01:47.9]} 20... Nxg4 {[%clk
0:02:15.5]} 21. Qxg4 {[%clk 0:01:48.8]} 21... f6 {[%clk 0:02:15.8]} 22. Rxc8
{[%clk 0:01:41]} 22... Rxc8 {[%clk 0:02:16.7]} 23. Rd7 {[%clk 0:01:41]} 23...
Qc6+ {[%clk 0:02:16.2]} 0-1

[Event "*** Titled Tuesday Blitz"]
[Site "Chess.com"]
[Date "2020.03.03"]
[Round "5"]
[White "Bulldog167"]
[Black "Parhamov"]
[Result "0-1"]
[WhiteElo "2765"]
[BlackElo "3049"]
[TimeControl "180+1"]
[EndTime "13:48:49 PST"]
[Termination "Parhamov won by resignation"]

1. d4 {[%clk 0:03:00.9]} 1... Nf6 {[%clk 0:02:52.5]} 2. c4 {[%clk 0:03:00.2]}
2... e6 {[%clk 0:02:51.7]} 3. Nf3 {[%clk 0:02:59.1]} 3... d5 {[%clk 0:02:51]} 4.
Nc3 {[%clk 0:02:59]} 4... dxc4 {[%clk 0:02:50.7]} 5. e4 {[%clk 0:02:51.2]} 5...
b5 {[%clk 0:02:49.9]} 6. e5 {[%clk 0:02:48]} 6... Nd5 {[%clk 0:02:49.6]} 7. Nxb5
{[%clk 0:02:48]} 7... Nb6 {[%clk 0:02:49.3]} 8. Be2 {[%clk 0:02:46.9]} 8... Nc6
{[%clk 0:02:49.6]} 9. O-O {[%clk 0:02:46.9]} 9... Be7 {[%clk 0:02:49.2]} 10. Qd2
{[%clk 0:02:46.7]} 10... O-O {[%clk 0:02:45.3]} 11. Qf4 {[%clk 0:02:45.4]} 11...
Rb8 {[%clk 0:02:44.6]} 12. Nc3 {[%clk 0:02:42.4]} 12... Bb7 {[%clk 0:02:42.5]}
13. Qg4 {[%clk 0:02:41.2]} 13... Kh8 {[%clk 0:02:42.4]} 14. Rd1 {[%clk
0:02:37.6]} 14... Nb4 {[%clk 0:02:42.5]} 15. Bg5 {[%clk 0:02:14.7]} 15... f6
{[%clk 0:02:41]} 16. exf6 {[%clk 0:02:10.9]} 16... Bxf6 {[%clk 0:02:40.9]} 17.
Be3 {[%clk 0:01:46.5]} 17... Nc2 {[%clk 0:02:38.5]} 18. Rac1 {[%clk 0:01:45.4]}
18... Nxe3 {[%clk 0:02:38.4]} 19. fxe3 {[%clk 0:01:46.3]} 19... Nd5 {[%clk
0:02:38]} 20. Kf2 {[%clk 0:01:10.5]} 20... Bg5 {[%clk 0:02:32.4]} 21. Nxd5
{[%clk 0:01:08]} 21... exd5 {[%clk 0:02:32.3]} 22. Rc3 {[%clk 0:00:58.6]} 22...
Bc8 {[%clk 0:02:30.9]} 23. Qh5 {[%clk 0:00:54.6]} 23... g6 {[%clk 0:02:26.2]}
0-1

[Event "*** Titled Tuesday Blitz"]
[Site "Chess.com"]
[Date "2020.03.03"]
[Round "5"]
[White "HomayoonTofighi"]
[Black "MatthewG-p4p"]
[Result "1-0"]
[WhiteElo "2625"]
[BlackElo "2781"]
[TimeControl "180+1"]
[EndTime "13:49:08 PST"]
[Termination "HomayoonTofighi won by resignation"]

1. e4 {[%clk 0:03:00.7]} 1... e6 {[%clk 0:02:58.8]} 2. d4 {[%clk 0:03:00.4]}
2... d5 {[%clk 0:02:59.2]} 3. Nd2 {[%clk 0:03:00.5]} 3... a6 {[%clk 0:02:58.8]}
4. Ngf3 {[%clk 0:03:00.8]} 4... Nf6 {[%clk 0:02:57.1]} 5. Bd3 {[%clk 0:02:59.5]}
5... c5 {[%clk 0:02:56.4]} 6. exd5 {[%clk 0:02:57]} 6... exd5 {[%clk 0:02:55.7]}
7. dxc5 {[%clk 0:02:28.1]} 7... Bxc5 {[%clk 0:02:54.8]} 8. Nb3 {[%clk
0:02:28.8]} 8... Bb6 {[%clk 0:02:54.7]} 9. O-O {[%clk 0:02:24.2]} 9... O-O
{[%clk 0:02:44.1]} 10. Bg5 {[%clk 0:02:24.8]} 10... h6 {[%clk 0:02:43.8]} 11.
Bh4 {[%clk 0:02:23.5]} 11... g5 {[%clk 0:02:43.6]} 12. Bg3 {[%clk 0:02:19.3]}
12... Ne4 {[%clk 0:02:43.6]} 13. Bxe4 {[%clk 0:02:13.7]} 13... dxe4 {[%clk
0:02:44.5]} 14. Nfd2 {[%clk 0:02:13.6]} 14... f5 {[%clk 0:02:22.8]} 15. Qh5
{[%clk 0:02:11.5]} 15... Qf6 {[%clk 0:02:10]} 16. Be5 {[%clk 0:02:12]} 16...
Qxe5 {[%clk 0:02:05.9]} 17. Qg6+ {[%clk 0:02:07.8]} 17... Qg7 {[%clk 0:02:06.3]}
18. Qxb6 {[%clk 0:02:06]} 18... Nd7 {[%clk 0:02:05.1]} 19. Qd6 {[%clk
0:01:54.9]} 19... Qxb2 {[%clk 0:02:01.6]} 20. Nd4 {[%clk 0:01:51]} 20... Nf6
{[%clk 0:01:50.8]} 21. Nc4 {[%clk 0:01:46.7]} 21... Qc3 {[%clk 0:01:38.9]} 22.
Nb6 {[%clk 0:01:46.7]} 22... Ra7 {[%clk 0:01:34.5]} 23. Rab1 {[%clk 0:01:42.6]}
23... Rf7 {[%clk 0:01:16.3]} 24. Qb8 {[%clk 0:01:39.5]} 1-0

[Event "*** Titled Tuesday Blitz"]
[Site "Chess.com"]
[Date "2020.03.03"]
[Round "5"]
[White "AyMitecK"]
[Black "TheBigBadChessDad"]
[Result "1/2-1/2"]
[WhiteElo "2323"]
[BlackElo "2315"]
[TimeControl "180+1"]
[EndTime "13:49:14 PST"]
[Termination "Game drawn by repetition"]

1. e4 {[%clk 0:03:00.9]} 1... e5 {[%clk 0:02:59.7]} 2. Nf3 {[%clk 0:02:57.4]}
2... Nf6 {[%clk 0:02:59.6]} 3. Nxe5 {[%clk 0:02:55.3]} 3... d6 {[%clk
0:02:59.4]} 4. Nf3 {[%clk 0:02:55.2]} 4... Nxe4 {[%clk 0:02:59]} 5. Nc3 {[%clk
0:02:55.8]} 5... Nxc3 {[%clk 0:02:58.9]} 6. dxc3 {[%clk 0:02:56.7]} 6... Be7
{[%clk 0:02:57.3]} 7. Bd3 {[%clk 0:02:56.4]} 7... Nd7 {[%clk 0:02:56.6]} 8. Be3
{[%clk 0:02:56.7]} 8... O-O {[%clk 0:02:56.3]} 9. Qd2 {[%clk 0:02:57.1]} 9...
Re8 {[%clk 0:02:56.9]} 10. O-O-O {[%clk 0:02:57.6]} 10... c6 {[%clk 0:02:57.2]}
11. g4 {[%clk 0:02:54.1]} 11... Ne5 {[%clk 0:02:53.1]} 12. Nxe5 {[%clk
0:02:52.4]} 12... dxe5 {[%clk 0:02:53.2]} 13. f3 {[%clk 0:02:43.2]} 13... Qa5
{[%clk 0:02:50.3]} 14. Kb1 {[%clk 0:02:31.2]} 14... Be6 {[%clk 0:02:38.8]} 15.
c4 {[%clk 0:02:13.2]} 15... Qxd2 {[%clk 0:02:32.5]} 16. Rxd2 {[%clk 0:02:13.6]}
16... h6 {[%clk 0:02:09.9]} 17. Rhd1 {[%clk 0:02:03.6]} 17... Bg5 {[%clk
0:02:08.8]} 18. Bxg5 {[%clk 0:01:56.5]} 18... hxg5 {[%clk 0:02:09.7]} 19. b3
{[%clk 0:01:55.7]} 19... Kf8 {[%clk 0:02:09.9]} 20. Rh1 {[%clk 0:01:52.6]} 20...
Ke7 {[%clk 0:02:07.8]} 21. h4 {[%clk 0:01:52.1]} 21... gxh4 {[%clk 0:02:07]} 22.
Rxh4 {[%clk 0:01:51.1]} 22... Rh8 {[%clk 0:02:07.5]} 23. Rdh2 {[%clk 0:01:51.1]}
23... Rxh4 {[%clk 0:02:07.4]} 24. Rxh4 {[%clk 0:01:52]} 24... f6 {[%clk
0:02:02.5]} 25. Bg6 {[%clk 0:01:43.3]} 25... c5 {[%clk 0:01:57.4]} 26. Rh7
{[%clk 0:01:41.7]} 26... Rg8 {[%clk 0:01:56.9]} 27. Kc1 {[%clk 0:01:42]} 27...
Bf7 {[%clk 0:01:52.9]} 28. Be4 {[%clk 0:01:39.8]} 28... b6 {[%clk 0:01:51.2]}
29. Kd2 {[%clk 0:01:36.2]} 29... Rd8+ {[%clk 0:01:46.5]} 30. Ke3 {[%clk
0:01:34.4]} 30... Kf8 {[%clk 0:01:45.1]} 31. Rh8+ {[%clk 0:01:29.4]} 31... Ke7
{[%clk 0:01:43.7]} 32. Rh7 {[%clk 0:01:29.9]} 32... Kf8 {[%clk 0:01:39.6]} 33.
Rh8+ {[%clk 0:01:27]} 33... Ke7 {[%clk 0:01:39.9]} 34. Rh7 {[%clk 0:01:21.1]}
1/2-1/2

[Event "*** Titled Tuesday Blitz"]
[Site "Chess.com"]
[Date "2020.03.03"]
[Round "5"]
[White "marcodobrikov"]
[Black "M1711"]
[Result "0-1"]
[WhiteElo "2551"]
[BlackElo "2534"]
[TimeControl "180+1"]
[EndTime "13:49:21 PST"]
[Termination "M1711 won by resignation"]

1. e4 {[%clk 0:03:00.9]} 1... e5 {[%clk 0:02:59.4]} 2. Nf3 {[%clk 0:03:01.3]}
2... d5 {[%clk 0:02:59.6]} 3. exd5 {[%clk 0:02:55.5]} 3... e4 {[%clk 0:02:59.8]}
4. Qe2 {[%clk 0:02:55.8]} 4... Nf6 {[%clk 0:02:59.7]} 5. d3 {[%clk 0:02:55]}
5... Qxd5 {[%clk 0:02:59.2]} 6. Nc3 {[%clk 0:02:53.4]} 6... Bb4 {[%clk
0:02:57.3]} 7. Bd2 {[%clk 0:02:54]} 7... Bxc3 {[%clk 0:02:57.5]} 8. Bxc3 {[%clk
0:02:54.2]} 8... O-O {[%clk 0:02:57.9]} 9. Nd2 {[%clk 0:02:41.1]} 9... exd3
{[%clk 0:02:53.7]} 10. Qxd3 {[%clk 0:02:41.2]} 10... Re8+ {[%clk 0:02:52.3]} 11.
Kd1 {[%clk 0:02:41.2]} 11... Qe6 {[%clk 0:02:36.2]} 12. Be2 {[%clk 0:02:35.7]}
12... Nc6 {[%clk 0:02:34.9]} 13. Bf3 {[%clk 0:02:35.3]} 13... Ne5 {[%clk
0:02:30.8]} 14. Bxe5 {[%clk 0:02:35]} 14... Qxe5 {[%clk 0:02:31.7]} 15. Qb3
{[%clk 0:02:27.4]} 15... Bg4 {[%clk 0:02:27]} 16. Bxg4 {[%clk 0:01:48.6]} 16...
Nxg4 {[%clk 0:02:25.8]} 17. Qf3 {[%clk 0:01:49.2]} 17... Rad8 {[%clk 0:01:30.6]}
18. Qxg4 {[%clk 0:01:36]} 18... Qxb2 {[%clk 0:01:30.6]} 19. Rc1 {[%clk
0:01:30.3]} 19... Qc3 {[%clk 0:01:30.7]} 20. Qf4 {[%clk 0:01:29.1]} 20... Re4
{[%clk 0:01:29.9]} 21. Qg5 {[%clk 0:01:10.3]} 21... f6 {[%clk 0:01:25.8]} 0-1

[Event "*** Titled Tuesday Blitz"]
[Site "Chess.com"]
[Date "2020.03.03"]
[Round "5"]
[White "szefru"]
[Black "Sordis"]
[Result "0-1"]
[WhiteElo "2162"]
[BlackElo "2350"]
[TimeControl "180+1"]
[EndTime "13:49:33 PST"]
[Termination "Sordis won by checkmate"]

1. b3 {[%clk 0:03:00.9]} 1... c5 {[%clk 0:02:56.9]} 2. Bb2 {[%clk 0:03:01.1]}
2... Nc6 {[%clk 0:02:57.5]} 3. e3 {[%clk 0:03:01.6]} 3... Nf6 {[%clk 0:02:55.8]}
4. f4 {[%clk 0:03:02]} 4... g6 {[%clk 0:02:55.1]} 5. Nf3 {[%clk 0:03:02.5]} 5...
Bg7 {[%clk 0:02:55.5]} 6. d3 {[%clk 0:03:02.9]} 6... O-O {[%clk 0:02:56]} 7.
Nbd2 {[%clk 0:03:03.3]} 7... d6 {[%clk 0:02:56.4]} 8. Be2 {[%clk 0:03:03.4]}
8... Nd5 {[%clk 0:02:55.5]} 9. Bxg7 {[%clk 0:02:53.8]} 9... Nxe3 {[%clk
0:02:45.6]} 10. Qc1 {[%clk 0:02:52.7]} 10... Kxg7 {[%clk 0:02:44.3]} 11. Kf2
{[%clk 0:02:52.1]} 11... Ng4+ {[%clk 0:02:37.7]} 12. Kg3 {[%clk 0:02:51.1]}
12... h5 {[%clk 0:02:36.6]} 13. h3 {[%clk 0:02:49.6]} 13... Nf6 {[%clk
0:02:36.1]} 14. Qb2 {[%clk 0:02:46.2]} 14... Be6 {[%clk 0:02:15.2]} 15. Rhf1
{[%clk 0:02:44.2]} 15... Qd7 {[%clk 0:02:13.8]} 16. Nh4 {[%clk 0:02:43.1]} 16...
Nd4 {[%clk 0:02:11]} 17. Rae1 {[%clk 0:02:36.6]} 17... Nf5+ {[%clk 0:02:05.5]}
18. Nxf5+ {[%clk 0:02:36.2]} 18... Bxf5 {[%clk 0:02:06.4]} 19. Bf3 {[%clk
0:02:33.6]} 19... Rab8 {[%clk 0:02:06]} 20. Re2 {[%clk 0:02:31.4]} 20... b5
{[%clk 0:02:01.3]} 21. Rfe1 {[%clk 0:02:30.9]} 21... Rfe8 {[%clk 0:02:01.7]} 22.
Nf1 {[%clk 0:02:24.4]} 22... a5 {[%clk 0:01:40.7]} 23. Ne3 {[%clk 0:02:23.6]}
23... Be6 {[%clk 0:01:39.3]} 24. Rf1 {[%clk 0:02:16.4]} 24... d5 {[%clk
0:01:29.3]} 25. Ref2 {[%clk 0:02:12]} 25... d4 {[%clk 0:01:28.9]} 26. f5 {[%clk
0:01:47.5]} 26... dxe3 {[%clk 0:01:26.6]} 27. fxe6 {[%clk 0:01:45.8]} 27... Qd6+
{[%clk 0:01:25.1]} 28. Kh4 {[%clk 0:01:42.7]} 28... exf2 {[%clk 0:01:12.5]} 29.
Rxf2 {[%clk 0:01:42.9]} 29... Qf4+ {[%clk 0:01:10.5]} 30. g4 {[%clk 0:01:42.1]}
30... g5# {[%clk 0:01:08.8]} 0-1

[Event "*** Titled Tuesday Blitz"]
[Site "Chess.com"]
[Date "2020.03.03"]
[Round "5"]
[White "Nesty_Javi_Chess"]
[Black "Konavets"]
[Result "0-1"]
[WhiteElo "2703"]
[BlackElo "3017"]
[TimeControl "180+1"]
[EndTime "13:49:35 PST"]
[Termination "Konavets won by resignation"]

1. e4 {[%clk 0:03:00.8]} 1... e5 {[%clk 0:02:53.3]} 2. Nf3 {[%clk 0:03:00.9]}
2... Nc6 {[%clk 0:02:54.2]} 3. d4 {[%clk 0:03:00.4]} 3... exd4 {[%clk
0:02:54.4]} 4. Bc4 {[%clk 0:03:01.3]} 4... Nf6 {[%clk 0:02:54.3]} 5. O-O {[%clk
0:03:02]} 5... Nxe4 {[%clk 0:02:54.7]} 6. Re1 {[%clk 0:03:02.7]} 6... d5 {[%clk
0:02:55.2]} 7. Bxd5 {[%clk 0:03:03.6]} 7... Qxd5 {[%clk 0:02:56.1]} 8. Nc3
{[%clk 0:03:04.5]} 8... Qa5 {[%clk 0:02:56.7]} 9. Nxe4 {[%clk 0:03:05.4]} 9...
Be6 {[%clk 0:02:57.4]} 10. Bd2 {[%clk 0:03:06.3]} 10... Qb6 {[%clk 0:02:55.3]}
11. Bg5 {[%clk 0:03:05.9]} 11... h6 {[%clk 0:02:50.6]} 12. Bh4 {[%clk
0:03:04.4]} 12... Bb4 {[%clk 0:02:49.6]} 13. c3 {[%clk 0:02:59.9]} 13... dxc3
{[%clk 0:02:48.4]} 14. bxc3 {[%clk 0:03:00.8]} 14... Be7 {[%clk 0:02:46.6]} 15.
Rb1 {[%clk 0:02:56.3]} 15... Qa5 {[%clk 0:02:46.2]} 16. Bxe7 {[%clk 0:02:53.2]}
16... Nxe7 {[%clk 0:02:44]} 17. Nd4 {[%clk 0:02:45]} 17... O-O-O {[%clk
0:02:42.1]} 18. Qe2 {[%clk 0:02:38.4]} 18... Bd5 {[%clk 0:02:40.1]} 19. Rb5
{[%clk 0:02:07.6]} 19... Qxa2 {[%clk 0:02:39.6]} 20. Rb2 {[%clk 0:01:36.1]}
20... Qc4 {[%clk 0:02:33.2]} 21. Qg4+ {[%clk 0:01:35.2]} 21... f5 {[%clk
0:02:29.2]} 22. Nxf5 {[%clk 0:01:29.9]} 22... Nxf5 {[%clk 0:02:30.1]} 23. Qxf5+
{[%clk 0:01:30.8]} 23... Kb8 {[%clk 0:02:30.7]} 24. h3 {[%clk 0:01:02.8]} 24...
Rhe8 {[%clk 0:02:18.5]} 25. Rb4 {[%clk 0:01:02.9]} 25... Qc6 {[%clk 0:02:09.4]}
26. f3 {[%clk 0:00:48.6]} 26... a5 {[%clk 0:02:08.2]} 27. Rd4 {[%clk 0:00:45.6]}
27... Bxe4 {[%clk 0:02:08.5]} 28. Rexe4 {[%clk 0:00:44]} 28... Qxc3 {[%clk
0:02:07]} 29. Rxe8 {[%clk 0:00:36.2]} 29... Qxd4+ {[%clk 0:02:06.1]} 0-1

[Event "*** Titled Tuesday Blitz"]
[Site "Chess.com"]
[Date "2020.03.03"]
[Round "5"]
[White "tigra"]
[Black "Pechen_Yeltsina"]
[Result "1-0"]
[WhiteElo "2785"]
[BlackElo "2716"]
[TimeControl "180+1"]
[EndTime "13:50:02 PST"]
[Termination "tigra won by checkmate"]

1. e4 {[%clk 0:03:00.9]} 1... g6 {[%clk 0:03:00.3]} 2. d4 {[%clk 0:03:00.5]}
2... Bg7 {[%clk 0:03:00.8]} 3. Nc3 {[%clk 0:03:01.4]} 3... d6 {[%clk 0:03:01.1]}
4. Be3 {[%clk 0:03:01.5]} 4... a6 {[%clk 0:03:01.3]} 5. a4 {[%clk 0:03:00.5]}
5... Nd7 {[%clk 0:02:57.8]} 6. f4 {[%clk 0:02:55.7]} 6... c5 {[%clk 0:02:51.8]}
7. Nf3 {[%clk 0:02:55]} 7... cxd4 {[%clk 0:02:51.4]} 8. Bxd4 {[%clk 0:02:51.3]}
8... Ngf6 {[%clk 0:02:50.4]} 9. e5 {[%clk 0:02:48.9]} 9... dxe5 {[%clk 0:02:46]}
10. fxe5 {[%clk 0:02:49.8]} 10... Nh5 {[%clk 0:02:46.5]} 11. Qd2 {[%clk
0:02:41.6]} 11... Nb8 {[%clk 0:02:34.4]} 12. O-O-O {[%clk 0:02:37.3]} 12... Nc6
{[%clk 0:02:32.3]} 13. Qe3 {[%clk 0:02:33.3]} 13... Nxd4 {[%clk 0:02:28.4]} 14.
Rxd4 {[%clk 0:02:32.4]} 14... Qa5 {[%clk 0:02:20.3]} 15. g4 {[%clk 0:02:31.6]}
15... Nf6 {[%clk 0:02:05]} 16. exf6 {[%clk 0:02:29.6]} 16... Bxf6 {[%clk
0:02:05.9]} 17. Nd5 {[%clk 0:02:26.5]} 17... O-O {[%clk 0:01:56.2]} 18. Nxf6+
{[%clk 0:02:25]} 18... exf6 {[%clk 0:01:57.1]} 19. Bc4 {[%clk 0:02:15.7]} 19...
Qc5 {[%clk 0:01:53.3]} 20. Bxf7+ {[%clk 0:02:06.9]} 20... Kg7 {[%clk 0:01:51.5]}
21. Bb3 {[%clk 0:02:03.7]} 21... b6 {[%clk 0:01:49.1]} 22. Re1 {[%clk
0:01:53.2]} 22... Ra7 {[%clk 0:01:49.2]} 23. Re4 {[%clk 0:01:39.5]} 23... Qxe3+
{[%clk 0:01:37.6]} 24. R1xe3 {[%clk 0:01:40.4]} 24... Kh6 {[%clk 0:01:33.9]} 25.
h4 {[%clk 0:01:39.3]} 25... f5 {[%clk 0:01:29]} 26. g5+ {[%clk 0:01:39.2]} 26...
Kh5 {[%clk 0:01:29]} 27. Rf4 {[%clk 0:01:39.8]} 27... Bb7 {[%clk 0:01:24.1]} 28.
c3 {[%clk 0:01:36.2]} 28... Bxf3 {[%clk 0:01:20.9]} 29. Rexf3 {[%clk 0:01:37.1]}
29... h6 {[%clk 0:01:20.1]} 30. Rg3 {[%clk 0:01:33.4]} 30... hxg5 {[%clk
0:01:18.2]} 31. hxg5 {[%clk 0:01:34.3]} 31... Rd7 {[%clk 0:01:13.6]} 32. Rg2
{[%clk 0:01:27.4]} 32... Rfd8 {[%clk 0:01:11.5]} 33. Rf1 {[%clk 0:01:27.2]}
33... Rd4 {[%clk 0:01:07.5]} 34. cxd4 {[%clk 0:01:26.5]} 34... Rxd4 {[%clk
0:01:08.4]} 35. Rh1+ {[%clk 0:01:26.6]} 35... Rh4 {[%clk 0:01:08.8]} 36. Bd1#
{[%clk 0:01:27.5]} 1-0